[Event "*** Titled Tuesday Blitz"]
[Site "Chess.com"]
[Date "2021.04.27"]
[Round "8"]
[White "Nozdrachev_Leonid"]
[Black "nrvignesh"]
[Result "0-1"]
[WhiteElo "2611"]
[BlackElo "2781"]
[TimeControl "180+1"]
[EndTime "11:27:45 PDT"]
[Termination "nrvignesh won by checkmate"]

1. e4 {[%clk 0:03:00.9]} 1... e5 {[%clk 0:02:56.2]} 2. Nf3 {[%clk 0:03:00.2]}
2... Nf6 {[%clk 0:02:54.8]} 3. Nxe5 {[%clk 0:02:59.1]} 3... d6 {[%clk
0:02:55.3]} 4. Nf3 {[%clk 0:02:59.2]} 4... Nxe4 {[%clk 0:02:56.2]} 5. Nc3 {[%clk
0:02:59.7]} 5... Nxc3 {[%clk 0:02:55.4]} 6. dxc3 {[%clk 0:03:00.6]} 6... Be7
{[%clk 0:02:52.8]} 7. Be3 {[%clk 0:03:01]} 7... O-O {[%clk 0:02:52.7]} 8. Bd3
{[%clk 0:03:01.5]} 8... Nc6 {[%clk 0:02:51.1]} 9. h3 {[%clk 0:02:57.9]} 9... Be6
{[%clk 0:02:51]} 10. O-O {[%clk 0:02:57]} 10... Qd7 {[%clk 0:02:50.9]} 11. Nd4
{[%clk 0:02:55.1]} 11... Nxd4 {[%clk 0:02:38.6]} 12. cxd4 {[%clk 0:02:54.6]}
12... d5 {[%clk 0:02:36.9]} 13. Qh5 {[%clk 0:02:51.1]} 13... g6 {[%clk
0:02:35.7]} 14. Qh6 {[%clk 0:02:51.1]} 14... Rfe8 {[%clk 0:02:32.2]} 15. Bg5
{[%clk 0:02:48.6]} 15... Bf5 {[%clk 0:02:29.6]} 16. Rad1 {[%clk 0:02:42.8]}
16... Bxd3 {[%clk 0:02:27.1]} 17. Rxd3 {[%clk 0:02:43.7]} 17... Qf5 {[%clk
0:02:26.6]} 18. Bxe7 {[%clk 0:02:35.4]} 18... Rxe7 {[%clk 0:02:27.5]} 19. Qd2
{[%clk 0:02:09]} 19... Rae8 {[%clk 0:02:25]} 20. Rf3 {[%clk 0:01:57]} 20... Qh5
{[%clk 0:02:24.2]} 21. Re3 {[%clk 0:01:52.9]} 21... Rxe3 {[%clk 0:02:20]} 22.
fxe3 {[%clk 0:01:52.5]} 22... Qg5 {[%clk 0:02:19.6]} 23. Rf3 {[%clk 0:01:52]}
23... c6 {[%clk 0:02:18.7]} 24. Qf2 {[%clk 0:01:45.4]} 24... Qe7 {[%clk
0:02:16.9]} 25. a3 {[%clk 0:01:39.9]} 25... h5 {[%clk 0:02:15.9]} 26. Qg3 {[%clk
0:01:37.1]} 26... Kg7 {[%clk 0:02:14.1]} 27. Qf2 {[%clk 0:01:35.2]} 27... Rd8
{[%clk 0:02:13.1]} 28. Kh1 {[%clk 0:01:32.6]} 28... Rd6 {[%clk 0:02:12.9]} 29.
Kg1 {[%clk 0:01:31.1]} 29... Re6 {[%clk 0:02:13]} 30. Kh1 {[%clk 0:01:30.8]}
30... a5 {[%clk 0:02:13.2]} 31. Kg1 {[%clk 0:01:30.1]} 31... a4 {[%clk
0:02:13.3]} 32. Kh1 {[%clk 0:01:29.1]} 32... Re4 {[%clk 0:02:12.2]} 33. Kg1
{[%clk 0:01:25.4]} 33... h4 {[%clk 0:02:12.2]} 34. Kh1 {[%clk 0:01:21.7]} 34...
g5 {[%clk 0:02:12.3]} 35. Kg1 {[%clk 0:01:15.4]} 35... Kg6 {[%clk 0:02:10.9]}
36. Qd2 {[%clk 0:01:11.2]} 36... f5 {[%clk 0:02:06.5]} 37. Qd3 {[%clk
0:01:07.9]} 37... Qe6 {[%clk 0:02:01.3]} 38. c3 {[%clk 0:01:03.4]} 38... Kg7
{[%clk 0:02:00.3]} 39. Qc2 {[%clk 0:00:50.6]} 39... g4 {[%clk 0:01:56.4]} 40.
hxg4 {[%clk 0:00:36.8]} 40... fxg4 {[%clk 0:01:57.3]} 41. Rf1 {[%clk 0:00:34.1]}
41... Rxe3 {[%clk 0:01:54.1]} 42. Qf2 {[%clk 0:00:32.5]} 42... g3 {[%clk
0:01:38.5]} 43. Qf8+ {[%clk 0:00:28.7]} 43... Kg6 {[%clk 0:01:38.6]} 44. Qh8
{[%clk 0:00:16.9]} 44... Re1 {[%clk 0:01:36.3]} 45. Qf8 {[%clk 0:00:10.7]} 45...
Qe3+ {[%clk 0:01:30.6]} 46. Kh1 {[%clk 0:00:09.7]} 46... Rxf1+ {[%clk 0:01:29]}
47. Qxf1 {[%clk 0:00:10.6]} 47... Qf2 {[%clk 0:01:28.6]} 48. Qb1+ {[%clk
0:00:07.3]} 48... Kg7 {[%clk 0:01:27.4]} 49. Qd1 {[%clk 0:00:06.4]} 49... Kh6
{[%clk 0:01:21.5]} 50. Qc1+ {[%clk 0:00:05.9]} 50... Kg6 {[%clk 0:01:19.4]} 51.
Qb1+ {[%clk 0:00:06]} 51... Kf6 {[%clk 0:01:11]} 52. Qd1 {[%clk 0:00:06.3]}
52... h3 {[%clk 0:01:06.1]} 53. Qg1 {[%clk 0:00:02.9]} 53... Qxg1+ {[%clk
0:01:01.1]} 54. Kxg1 {[%clk 0:00:02.7]} 54... h2+ {[%clk 0:01:01.1]} 55. Kh1
{[%clk 0:00:03]} 55... Kf5 {[%clk 0:00:51.9]} 56. c4 {[%clk 0:00:02.5]} 56...
dxc4 {[%clk 0:00:49.4]} 57. d5 {[%clk 0:00:02.8]} 57... cxd5 {[%clk 0:00:46]}
58. b4 {[%clk 0:00:01.6]} 58... axb3 {[%clk 0:00:45.1]} 59. a4 {[%clk
0:00:01.7]} 59... b2 {[%clk 0:00:45.7]} 60. a5 {[%clk 0:00:02.6]} 60... b1=Q#
{[%clk 0:00:46.2]} 0-1

[Event "*** Titled Tuesday Blitz"]
[Site "Chess.com"]
[Date "2021.04.27"]
[Round "8"]
[White "mishanick"]
[Black "attack2mateU"]
[Result "0-1"]
[WhiteElo "2997"]
[BlackElo "2767"]
[TimeControl "180+1"]
[EndTime "11:27:48 PDT"]
[Termination "attack2mateU won by resignation"]

1. e4 {[%clk 0:03:00.9]} 1... c5 {[%clk 0:02:59.9]} 2. Nf3 {[%clk 0:03:01.4]}
2... d6 {[%clk 0:03:00.1]} 3. d4 {[%clk 0:03:01.7]} 3... cxd4 {[%clk 0:03:01]}
4. Nxd4 {[%clk 0:03:02.6]} 4... Nf6 {[%clk 0:03:01.3]} 5. Nc3 {[%clk 0:03:03.3]}
5... a6 {[%clk 0:03:01.9]} 6. Be3 {[%clk 0:03:00.8]} 6... e5 {[%clk 0:03:01.4]}
7. Nb3 {[%clk 0:03:01.4]} 7... Be7 {[%clk 0:03:00.7]} 8. f3 {[%clk 0:03:01.5]}
8... Be6 {[%clk 0:03:00.7]} 9. Qd2 {[%clk 0:03:01]} 9... h5 {[%clk 0:03:00.5]}
10. Nd5 {[%clk 0:03:01.1]} 10... Nxd5 {[%clk 0:02:58.9]} 11. exd5 {[%clk
0:03:02]} 11... Bf5 {[%clk 0:02:58.3]} 12. Na5 {[%clk 0:03:01.2]} 12... Qc7
{[%clk 0:02:34.3]} 13. Be2 {[%clk 0:02:55.5]} 13... Bh4+ {[%clk 0:02:23.6]} 14.
g3 {[%clk 0:02:55.3]} 14... Bd8 {[%clk 0:02:24.3]} 15. b4 {[%clk 0:02:45.2]}
15... b6 {[%clk 0:02:23.4]} 16. Nc4 {[%clk 0:02:37.3]} 16... Nd7 {[%clk
0:02:22.2]} 17. a4 {[%clk 0:02:36.6]} 17... Bh3 {[%clk 0:01:49.8]} 18. Kf2
{[%clk 0:02:23.2]} 18... f5 {[%clk 0:01:39.1]} 19. a5 {[%clk 0:01:46.1]} 19...
b5 {[%clk 0:01:37.2]} 20. Nb6 {[%clk 0:01:46.1]} 20... Nxb6 {[%clk 0:01:34.5]}
21. Bxb6 {[%clk 0:01:47]} 21... Qb7 {[%clk 0:01:25.5]} 22. Bxd8 {[%clk
0:01:45.6]} 22... Rxd8 {[%clk 0:01:26.4]} 23. Qg5 {[%clk 0:01:37]} 23... O-O
{[%clk 0:01:22.2]} 24. Ra3 {[%clk 0:01:04.8]} 24... Rc8 {[%clk 0:01:16.3]} 25.
Rc1 {[%clk 0:01:04.4]} 25... f4 {[%clk 0:01:04.3]} 26. gxf4 {[%clk 0:01:01.8]}
26... exf4 {[%clk 0:00:59.1]} 27. Rd3 {[%clk 0:00:25.2]} 27... Qa7+ {[%clk
0:00:54.6]} 28. Ke1 {[%clk 0:00:25.7]} 28... Rf5 {[%clk 0:00:40.9]} 29. Qh4
{[%clk 0:00:22.4]} 29... Qg1+ {[%clk 0:00:32.9]} 30. Kd2 {[%clk 0:00:22.6]}
30... Qxh2 {[%clk 0:00:23]} 31. Re1 {[%clk 0:00:19.4]} 31... Re5 {[%clk
0:00:22.9]} 32. Kd1 {[%clk 0:00:15.2]} 32... Rce8 {[%clk 0:00:20.6]} 33. Rd2
{[%clk 0:00:11.3]} 33... Qg3 {[%clk 0:00:19.4]} 34. Qxg3 {[%clk 0:00:10.4]}
34... fxg3 {[%clk 0:00:20.3]} 35. f4 {[%clk 0:00:09.7]} 35... Rxe2 {[%clk
0:00:17.4]} 36. Rexe2 {[%clk 0:00:09.6]} 36... Bg4 {[%clk 0:00:18.1]} 37. Ke1
{[%clk 0:00:10.2]} 37... Rxe2+ {[%clk 0:00:16.3]} 38. Rxe2 {[%clk 0:00:11.1]}
38... Bxe2 {[%clk 0:00:16.9]} 39. Kxe2 {[%clk 0:00:12]} 39... Kf7 {[%clk
0:00:14.5]} 40. Kf3 {[%clk 0:00:11.1]} 40... h4 {[%clk 0:00:14.4]} 41. c4 {[%clk
0:00:11.4]} 41... bxc4 {[%clk 0:00:15.3]} 42. b5 {[%clk 0:00:12.1]} 42... c3
{[%clk 0:00:16.1]} 43. bxa6 {[%clk 0:00:12]} 43... c2 {[%clk 0:00:16.6]} 44. a7
{[%clk 0:00:12.7]} 44... c1=Q {[%clk 0:00:17.2]} 45. a8=Q {[%clk 0:00:13.4]}
45... Qf1+ {[%clk 0:00:13]} 46. Ke4 {[%clk 0:00:13]} 46... g2 {[%clk 0:00:12.4]}
47. Qa7+ {[%clk 0:00:09.2]} 47... Kg6 {[%clk 0:00:12.6]} 48. Qd7 {[%clk
0:00:02.7]} 48... Qe2+ {[%clk 0:00:11.7]} 49. Kd4 {[%clk 0:00:02.6]} 49... g1=Q+
{[%clk 0:00:11.8]} 0-1

[Event "*** Titled Tuesday Blitz"]
[Site "Chess.com"]
[Date "2021.04.27"]
[Round "8"]
[White "IMRosen"]
[Black "riospm"]
[Result "1-0"]
[WhiteElo "2674"]
[BlackElo "2533"]
[TimeControl "180+1"]
[EndTime "11:27:48 PDT"]
[Termination "IMRosen won by resignation"]

1. e4 {[%clk 0:02:56.5]} 1... c5 {[%clk 0:03:00]} 2. Nc3 {[%clk 0:02:54.7]} 2...
d6 {[%clk 0:03:00.9]} 3. f4 {[%clk 0:02:49.3]} 3... e6 {[%clk 0:02:59.7]} 4. Nf3
{[%clk 0:02:49.6]} 4... Nc6 {[%clk 0:02:58.1]} 5. Bc4 {[%clk 0:02:48.3]} 5...
Nge7 {[%clk 0:02:55]} 6. d4 {[%clk 0:02:31.8]} 6... cxd4 {[%clk 0:02:53.1]} 7.
Nxd4 {[%clk 0:02:30.7]} 7... Nxd4 {[%clk 0:02:53.2]} 8. Qxd4 {[%clk 0:02:29.5]}
8... Nc6 {[%clk 0:02:53.5]} 9. Qf2 {[%clk 0:02:26.2]} 9... Be7 {[%clk
0:02:52.4]} 10. O-O {[%clk 0:02:24]} 10... O-O {[%clk 0:02:51.4]} 11. Be3 {[%clk
0:02:23.3]} 11... a6 {[%clk 0:02:42.3]} 12. a4 {[%clk 0:02:22.1]} 12... Bd7
{[%clk 0:02:37.8]} 13. Bb6 {[%clk 0:02:19.6]} 13... Qb8 {[%clk 0:02:36.8]} 14.
a5 {[%clk 0:02:17.2]} 14... Bd8 {[%clk 0:02:28.1]} 15. Rad1 {[%clk 0:02:16.6]}
15... Bxb6 {[%clk 0:02:27.1]} 16. Qxb6 {[%clk 0:02:16.4]} 16... Rd8 {[%clk
0:02:19.5]} 17. Rd3 {[%clk 0:02:07.4]} 17... Be8 {[%clk 0:02:17.7]} 18. Rfd1
{[%clk 0:02:06.4]} 18... Qa7 {[%clk 0:02:11.3]} 19. Rxd6 {[%clk 0:01:40]} 19...
Rxd6 {[%clk 0:02:01.7]} 20. Rxd6 {[%clk 0:01:38.9]} 20... Nxa5 {[%clk
0:01:59.3]} 21. Qxa7 {[%clk 0:01:34.1]} 21... Rxa7 {[%clk 0:01:59.1]} 22. Rd8
{[%clk 0:01:26.4]} 22... Kf8 {[%clk 0:01:58.3]} 23. Be2 {[%clk 0:01:23.1]} 23...
Ke7 {[%clk 0:01:50.5]} 24. Rd1 {[%clk 0:01:22.6]} 24... b5 {[%clk 0:01:46.4]}
25. e5 {[%clk 0:01:05.6]} 25... Nb7 {[%clk 0:01:26.6]} 26. Bf3 {[%clk
0:00:54.3]} 26... Nc5 {[%clk 0:01:20.7]} 27. b4 {[%clk 0:00:54.5]} 27... Na4
{[%clk 0:01:19.5]} 28. Nxa4 {[%clk 0:00:53.8]} 28... bxa4 {[%clk 0:01:19.7]} 29.
c4 {[%clk 0:00:54.3]} 29... Rc7 {[%clk 0:01:17.5]} 30. c5 {[%clk 0:00:53.7]}
30... a5 {[%clk 0:01:17.3]} 31. bxa5 {[%clk 0:00:08.7]} 31... Rxc5 {[%clk
0:01:16.5]} 32. a6 {[%clk 0:00:08.9]} 32... Ra5 {[%clk 0:01:14.3]} 33. Be2
{[%clk 0:00:08.9]} 33... Bb5 {[%clk 0:00:51.7]} 34. Rb1 {[%clk 0:00:04.2]} 34...
Bc6 {[%clk 0:00:29.6]} 35. Kf2 {[%clk 0:00:02.1]} 35... a3 {[%clk 0:00:29.3]}
36. Ra1 {[%clk 0:00:02.1]} 36... Kd7 {[%clk 0:00:26.2]} 37. g3 {[%clk
0:00:02.4]} 37... Bd5 {[%clk 0:00:26]} 38. Ke3 {[%clk 0:00:02.7]} 38... Kc6
{[%clk 0:00:25.9]} 39. Kd2 {[%clk 0:00:02.9]} 39... Kc5 {[%clk 0:00:25.6]} 40.
Kc3 {[%clk 0:00:03.3]} 40... h6 {[%clk 0:00:23.5]} 41. h4 {[%clk 0:00:03.1]}
41... f6 {[%clk 0:00:23.3]} 42. exf6 {[%clk 0:00:03.2]} 42... gxf6 {[%clk
0:00:23.3]} 43. g4 {[%clk 0:00:02.9]} 43... e5 {[%clk 0:00:23.4]} 44. fxe5
{[%clk 0:00:02.8]} 44... fxe5 {[%clk 0:00:23.7]} 45. g5 {[%clk 0:00:03.7]} 45...
hxg5 {[%clk 0:00:23.4]} 46. hxg5 {[%clk 0:00:04.6]} 46... e4 {[%clk 0:00:23.4]}
47. g6 {[%clk 0:00:04.6]} 47... e3 {[%clk 0:00:22.7]} 48. g7 {[%clk 0:00:04.8]}
48... Bg8 {[%clk 0:00:20.9]} 49. Kd3 {[%clk 0:00:04.2]} 49... a2 {[%clk
0:00:20.2]} 50. Kxe3 {[%clk 0:00:04.1]} 50... Kd6 {[%clk 0:00:20.6]} 51. Kd4
{[%clk 0:00:03.6]} 51... Ke7 {[%clk 0:00:20.8]} 52. Kc3 {[%clk 0:00:03.9]} 52...
Kf6 {[%clk 0:00:20.7]} 53. Kb4 {[%clk 0:00:04.4]} 53... Re5 {[%clk 0:00:19.7]}
54. a7 {[%clk 0:00:04.8]} 54... Re8 {[%clk 0:00:18.6]} 55. Bf3 {[%clk
0:00:05.2]} 55... Kxg7 {[%clk 0:00:17.9]} 56. a8=Q {[%clk 0:00:05.5]} 56... Rxa8
{[%clk 0:00:18]} 57. Bxa8 {[%clk 0:00:06.4]} 1-0

[Event "*** Titled Tuesday Blitz"]
[Site "Chess.com"]
[Date "2021.04.27"]
[Round "8"]
[White "ChampStan"]
[Black "Supernotar"]
[Result "0-1"]
[WhiteElo "2140"]
[BlackElo "2721"]
[TimeControl "180+1"]
[EndTime "11:27:49 PDT"]
[Termination "Supernotar won on time"]

1. e4 {[%clk 0:03:00.9]} 1... c6 {[%clk 0:02:59.8]} 2. d4 {[%clk 0:02:46.7]}
2... d5 {[%clk 0:03:00.7]} 3. exd5 {[%clk 0:02:46]} 3... cxd5 {[%clk 0:03:01.6]}
4. Bd3 {[%clk 0:02:45.9]} 4... Nc6 {[%clk 0:03:01.5]} 5. c3 {[%clk 0:02:45.8]}
5... Qc7 {[%clk 0:03:01.8]} 6. g3 {[%clk 0:02:46.7]} 6... Nf6 {[%clk 0:02:56.1]}
7. Nf3 {[%clk 0:02:42.4]} 7... Bg4 {[%clk 0:02:52.7]} 8. h3 {[%clk 0:02:41.9]}
8... Bh5 {[%clk 0:02:51.8]} 9. O-O {[%clk 0:02:24.7]} 9... e6 {[%clk 0:02:48.3]}
10. a4 {[%clk 0:02:18.8]} 10... Bd6 {[%clk 0:02:46.7]} 11. Kg2 {[%clk
0:02:19.3]} 11... O-O {[%clk 0:02:44.6]} 12. Na3 {[%clk 0:02:18]} 12... a6
{[%clk 0:02:44.2]} 13. Nc2 {[%clk 0:02:18.4]} 13... Ne4 {[%clk 0:02:44.5]} 14.
g4 {[%clk 0:02:17.3]} 14... Bg6 {[%clk 0:02:41.4]} 15. Nh4 {[%clk 0:02:17.5]}
15... e5 {[%clk 0:02:22]} 16. Ne3 {[%clk 0:02:00.8]} 16... Nf6 {[%clk
0:02:09.1]} 17. Nef5 {[%clk 0:01:53.6]} 17... e4 {[%clk 0:02:06.7]} 18. Be2
{[%clk 0:01:50.2]} 18... Rad8 {[%clk 0:02:02.4]} 19. Be3 {[%clk 0:01:45.6]}
19... h6 {[%clk 0:01:59.2]} 20. b4 {[%clk 0:01:36.9]} 20... Bh7 {[%clk
0:01:57.6]} 21. Qd2 {[%clk 0:01:33.6]} 21... Rfe8 {[%clk 0:01:55.7]} 22. Bxh6
{[%clk 0:01:20.2]} 22... Bf8 {[%clk 0:01:40.2]} 23. Be3 {[%clk 0:00:50.2]} 23...
Re6 {[%clk 0:01:28.3]} 24. Bf4 {[%clk 0:00:35.7]} 24... Qd7 {[%clk 0:01:26.2]}
25. Qe3 {[%clk 0:00:35.8]} 25... Ne8 {[%clk 0:01:22]} 26. Ng3 {[%clk 0:00:27.4]}
26... g6 {[%clk 0:01:18.4]} 27. b5 {[%clk 0:00:25.2]} 27... Na5 {[%clk
0:01:15.8]} 28. Rab1 {[%clk 0:00:24]} 28... Nd6 {[%clk 0:01:12.9]} 29. bxa6
{[%clk 0:00:22.3]} 29... bxa6 {[%clk 0:01:08]} 30. Bxd6 {[%clk 0:00:18.2]} 30...
Bxd6 {[%clk 0:01:05.9]} 31. Rb2 {[%clk 0:00:13.1]} 31... Qxa4 {[%clk 0:01:00.2]}
32. Rfb1 {[%clk 0:00:11.6]} 32... Nc4 {[%clk 0:00:56]} 33. Bxc4 {[%clk
0:00:10.3]} 33... Qxc4 {[%clk 0:00:56.9]} 34. Rb7 {[%clk 0:00:09.4]} 34... Bc7
{[%clk 0:00:46.8]} 35. R1b4 {[%clk 0:00:07.5]} 35... Qc6 {[%clk 0:00:44.9]} 36.
Rb3 {[%clk 0:00:06.7]} 36... Ree8 {[%clk 0:00:39.5]} 37. Qg5 {[%clk 0:00:05.9]}
37... Rc8 {[%clk 0:00:22.4]} 38. Ngf5 {[%clk 0:00:05.5]} 38... f6 {[%clk
0:00:20.1]} 39. Qh6 {[%clk 0:00:03.7]} 39... gxf5 {[%clk 0:00:17.9]} 40. g5
{[%clk 0:00:04.1]} 40... Qe6 {[%clk 0:00:14.8]} 41. g6 {[%clk 0:00:03.4]} 41...
Re7 {[%clk 0:00:13.7]} 42. gxh7+ {[%clk 0:00:02.5]} 42... Rxh7 {[%clk
0:00:14.6]} 43. Qg6+ {[%clk 0:00:01.2]} 43... Rg7 {[%clk 0:00:14.9]} 44. Qxg7+
{[%clk 0:00:01.8]} 44... Kxg7 {[%clk 0:00:15.8]} 45. Kf1 {[%clk 0:00:02.1]}
45... Kh6 {[%clk 0:00:14.8]} 0-1

[Event "*** Titled Tuesday Blitz"]
[Site "Chess.com"]
[Date "2021.04.27"]
[Round "8"]
[White "OlifantCZ"]
[Black "masteryoungK"]
[Result "0-1"]
[WhiteElo "2263"]
[BlackElo "2422"]
[TimeControl "180+1"]
[EndTime "11:27:52 PDT"]
[Termination "masteryoungK won by resignation"]

1. c4 {[%clk 0:03:00.9]} 1... Nf6 {[%clk 0:02:57.5]} 2. g3 {[%clk 0:03:00.6]}
2... g6 {[%clk 0:02:57.8]} 3. Bg2 {[%clk 0:03:01.1]} 3... Bg7 {[%clk 0:02:58.5]}
4. Nc3 {[%clk 0:03:01.6]} 4... d6 {[%clk 0:02:58.9]} 5. e4 {[%clk 0:03:00.7]}
5... O-O {[%clk 0:02:59.8]} 6. Nge2 {[%clk 0:03:00.9]} 6... c5 {[%clk
0:02:59.2]} 7. O-O {[%clk 0:03:01.2]} 7... Nc6 {[%clk 0:02:59.8]} 8. d3 {[%clk
0:03:00.1]} 8... Rb8 {[%clk 0:02:59.7]} 9. h3 {[%clk 0:02:57.7]} 9... Ne8 {[%clk
0:02:58.7]} 10. Be3 {[%clk 0:02:56]} 10... Nc7 {[%clk 0:02:59.1]} 11. d4 {[%clk
0:02:56.4]} 11... cxd4 {[%clk 0:03:00]} 12. Nxd4 {[%clk 0:02:56.7]} 12... Ne6
{[%clk 0:03:00.7]} 13. Nde2 {[%clk 0:02:35.2]} 13... a6 {[%clk 0:02:59.4]} 14.
Rc1 {[%clk 0:02:31.3]} 14... Bd7 {[%clk 0:02:47.4]} 15. f4 {[%clk 0:02:26.5]}
15... b5 {[%clk 0:02:41.9]} 16. cxb5 {[%clk 0:02:18.7]} 16... axb5 {[%clk
0:02:42.8]} 17. b3 {[%clk 0:02:05.6]} 17... Nc5 {[%clk 0:02:31.3]} 18. e5 {[%clk
0:01:54]} 18... Re8 {[%clk 0:01:45.2]} 19. Qd2 {[%clk 0:01:27.1]} 19... b4
{[%clk 0:01:40.4]} 20. Nd5 {[%clk 0:01:23.1]} 20... Qa5 {[%clk 0:00:56.8]} 21.
Nd4 {[%clk 0:01:07.8]} 21... Nxd4 {[%clk 0:00:53.1]} 22. Bxd4 {[%clk 0:01:07.4]}
22... Bb5 {[%clk 0:00:49.9]} 23. Rf3 {[%clk 0:00:52.4]} 23... Ne6 {[%clk
0:00:35.7]} 24. Ba1 {[%clk 0:00:36.2]} 24... Red8 {[%clk 0:00:29.3]} 25. Nxe7+
{[%clk 0:00:34.3]} 25... Kf8 {[%clk 0:00:26.7]} 26. exd6 {[%clk 0:00:34.6]}
26... Qb6+ {[%clk 0:00:25.4]} 27. Kh2 {[%clk 0:00:33.9]} 27... Bxa1 {[%clk
0:00:25]} 28. Rxa1 {[%clk 0:00:30.1]} 28... Rxd6 {[%clk 0:00:25.2]} 29. Qxb4
{[%clk 0:00:26.2]} 29... Kxe7 {[%clk 0:00:23.1]} 30. f5 {[%clk 0:00:26.2]} 30...
gxf5 {[%clk 0:00:20.6]} 31. Rxf5 {[%clk 0:00:23.3]} 31... Bd7 {[%clk 0:00:18.8]}
32. Qh4+ {[%clk 0:00:23]} 32... Ke8 {[%clk 0:00:16.1]} 33. Qxh7 {[%clk
0:00:22.7]} 33... Qd4 {[%clk 0:00:07.7]} 34. Qxf7+ {[%clk 0:00:21.7]} 34... Kd8
{[%clk 0:00:08.4]} 35. Re1 {[%clk 0:00:19.7]} 35... Kc7 {[%clk 0:00:08.1]} 36.
Rc1+ {[%clk 0:00:18.9]} 36... Kb6 {[%clk 0:00:07.8]} 37. Qh5 {[%clk 0:00:08.1]}
37... Rf8 {[%clk 0:00:06.1]} 38. Rxf8 {[%clk 0:00:07.3]} 38... Nxf8 {[%clk
0:00:07]} 39. Rc4 {[%clk 0:00:07.5]} 39... Qf6 {[%clk 0:00:05.7]} 40. Qc5+
{[%clk 0:00:07.3]} 40... Ka6 {[%clk 0:00:04.5]} 41. Rb4 {[%clk 0:00:06.4]} 41...
Rb6 {[%clk 0:00:03.4]} 42. Qc4+ {[%clk 0:00:04.5]} 42... Ka7 {[%clk 0:00:03.5]}
43. Rxb6 {[%clk 0:00:04]} 43... Qxb6 {[%clk 0:00:04.4]} 44. Qf4 {[%clk
0:00:02.8]} 44... Ne6 {[%clk 0:00:04.8]} 45. h4 {[%clk 0:00:03.3]} 45... Nxf4
{[%clk 0:00:04.9]} 46. gxf4 {[%clk 0:00:03.7]} 46... Qd4 {[%clk 0:00:05.8]} 47.
Kg3 {[%clk 0:00:03.9]} 47... Qf6 {[%clk 0:00:06.5]} 48. Bf3 {[%clk 0:00:03.3]}
48... Bf5 {[%clk 0:00:07.4]} 49. h5 {[%clk 0:00:03.6]} 49... Qg7+ {[%clk
0:00:08.1]} 50. Kh4 {[%clk 0:00:03.9]} 50... Qh6 {[%clk 0:00:08.7]} 0-1

[Event "*** Titled Tuesday Blitz"]
[Site "Chess.com"]
[Date "2021.04.27"]
[Round "8"]
[White "mr65"]
[Black "stolencandy13"]
[Result "0-1"]
[WhiteElo "2204"]
[BlackElo "2469"]
[TimeControl "180+1"]
[EndTime "11:27:54 PDT"]
[Termination "stolencandy13 won on time"]

1. e4 {[%clk 0:03:00.9]} 1... c6 {[%clk 0:02:59.9]} 2. Nc3 {[%clk 0:02:59.8]}
2... d5 {[%clk 0:03:00.8]} 3. Nf3 {[%clk 0:02:59.6]} 3... Bg4 {[%clk 0:03:01]}
4. h3 {[%clk 0:02:58.6]} 4... Bxf3 {[%clk 0:03:00.6]} 5. Qxf3 {[%clk 0:02:58.5]}
5... e6 {[%clk 0:03:00.8]} 6. g3 {[%clk 0:02:58.5]} 6... Nf6 {[%clk 0:02:59.4]}
7. Bg2 {[%clk 0:02:58.3]} 7... dxe4 {[%clk 0:02:59.4]} 8. Nxe4 {[%clk
0:02:57.5]} 8... Nxe4 {[%clk 0:03:00.3]} 9. Qxe4 {[%clk 0:02:57.6]} 9... Qd5
{[%clk 0:03:01.2]} 10. O-O {[%clk 0:02:54.4]} 10... Qxe4 {[%clk 0:02:58.4]} 11.
Bxe4 {[%clk 0:02:53.5]} 11... Nd7 {[%clk 0:02:59.3]} 12. a4 {[%clk 0:02:52.1]}
12... Bc5 {[%clk 0:02:56.4]} 13. a5 {[%clk 0:02:50.4]} 13... a6 {[%clk
0:02:55.7]} 14. c3 {[%clk 0:02:48.8]} 14... O-O-O {[%clk 0:02:39.1]} 15. d4
{[%clk 0:02:04.8]} 15... Ba7 {[%clk 0:02:38.5]} 16. b4 {[%clk 0:02:02]} 16... e5
{[%clk 0:02:31.3]} 17. dxe5 {[%clk 0:01:51.5]} 17... Nxe5 {[%clk 0:02:32.2]} 18.
Re1 {[%clk 0:01:50.9]} 18... Rhe8 {[%clk 0:02:16]} 19. Bf4 {[%clk 0:01:32.5]}
19... g6 {[%clk 0:02:00]} 20. Rad1 {[%clk 0:01:09.3]} 20... Rxd1 {[%clk
0:01:55.1]} 21. Rxd1 {[%clk 0:01:07.8]} 21... f5 {[%clk 0:01:51.7]} 22. Bg2
{[%clk 0:01:06]} 22... Bb8 {[%clk 0:01:38.1]} 23. Kf1 {[%clk 0:01:01.3]} 23...
Rd8 {[%clk 0:01:30.6]} 24. Rxd8+ {[%clk 0:00:57.4]} 24... Kxd8 {[%clk
0:01:31.5]} 25. Ke2 {[%clk 0:00:56.7]} 25... Bd6 {[%clk 0:01:28]} 26. h4 {[%clk
0:00:47.4]} 26... Kd7 {[%clk 0:01:23.7]} 27. h5 {[%clk 0:00:44.1]} 27... Nc4
{[%clk 0:01:21.3]} 28. Bxd6 {[%clk 0:00:41.5]} 28... Nxd6 {[%clk 0:01:22.2]} 29.
hxg6 {[%clk 0:00:40.9]} 29... hxg6 {[%clk 0:01:23.1]} 30. Kd3 {[%clk 0:00:40.8]}
30... g5 {[%clk 0:01:20.3]} 31. f4 {[%clk 0:00:38.4]} 31... g4 {[%clk
0:01:12.9]} 32. Kd4 {[%clk 0:00:37.9]} 32... Ke6 {[%clk 0:01:02.9]} 33. c4
{[%clk 0:00:37.7]} 33... Nc8 {[%clk 0:00:44.2]} 34. b5 {[%clk 0:00:31.9]} 34...
Kd6 {[%clk 0:00:39.7]} 35. c5+ {[%clk 0:00:27.5]} 35... Kd7 {[%clk 0:00:24.7]}
36. b6 {[%clk 0:00:27.1]} 36... Ne7 {[%clk 0:00:13.8]} 37. Ke5 {[%clk
0:00:23.2]} 37... Kd8 {[%clk 0:00:12.3]} 38. Ke6 {[%clk 0:00:19.5]} 38... Ke8
{[%clk 0:00:12.5]} 39. Kd6 {[%clk 0:00:16.8]} 39... Kd8 {[%clk 0:00:12]} 40. Bh1
{[%clk 0:00:15.3]} 40... Nc8+ {[%clk 0:00:11.4]} 41. Ke6 {[%clk 0:00:14.8]}
41... Ne7 {[%clk 0:00:11.7]} 42. Bg2 {[%clk 0:00:14.8]} 42... Ke8 {[%clk
0:00:11.9]} 43. Bf1 {[%clk 0:00:14.4]} 43... Kd8 {[%clk 0:00:10.6]} 44. Bd3
{[%clk 0:00:13.8]} 44... Nd5 {[%clk 0:00:10]} 45. Bxf5 {[%clk 0:00:10.5]} 45...
Ne3 {[%clk 0:00:09.8]} 46. Ke5 {[%clk 0:00:04.4]} 46... Nc4+ {[%clk 0:00:07.4]}
47. Ke6 {[%clk 0:00:03.5]} 47... Nxa5 {[%clk 0:00:07.4]} 48. Bxg4 {[%clk
0:00:03.1]} 48... Nb3 {[%clk 0:00:07.7]} 49. f5 {[%clk 0:00:03.1]} 49... Nxc5+
{[%clk 0:00:07.8]} 50. Kd6 {[%clk 0:00:01.8]} 50... Ne4+ {[%clk 0:00:05.3]} 0-1